Cogmind - Beta 12 @@@ ROGUE MODE // 2023.03.28 @ 05:42:54 // Winter2019/RPGLIKE Player: ArabianSandBoa Result: Destroyed by G-67 Veteran with Plasma Rifle Performance ------------- Evolutions (7) 3500 Regions Visited (25) 5000 Robots Destroyed (686) 3430 Value Destroyed (35449) 35449 Prototype IDs (136) 2720 Alien Tech Used (6) 1200 Bonus (33674) 33674 TOTAL SCORE: 84973 Bonus ------- Triggered High Security 3000 Triggered Max Security 1000 High Alert Combat Kills 18462 Follower Combat Kills 2558 Entered Garrisons 1200 Used RIF Installer 4500 Aligned with FarCom 300 Used Core Reset Matrix 3000 Met Sigix 2000 Friendly Fire -2346 Cogmind --------- Core Integrity 0/850 Matter 230/300 Energy 240/240 System Corruption 0% Temperature Cool (9) Movement Flying (10) Location -3/Quarantine Parts ------- > --- POWER (2) -------- Micro Antimatter Reactor Light Quantum Reactor > --- PROPULSION (9) --- Diametric Drive Diametric Drive Diametric Drive Q-thruster Q-thruster Improved Diametric Drive Improved Diametric Drive Cooled Impulse Thruster Cooled Impulse Thruster > --- UTILITY (11) ----- Experimental Coolant Injector Advanced Weight Redist. System Improved Targeting Computer Advanced Weapon Cycler Advanced Transmission Jammer Advanced Force Field Improved System Shield > --- WEAPON (4) ------- Core Cannon Field Lobotomy Kit > --- INVENTORY (4) ---- Core Stripper Sigix Corpse Peak State ------------ > --- POWER ------------ Micro Antimatter Reactor Light Quantum Reactor > --- PROPULSION ------- Diametric Drive Diametric Drive Diametric Drive Q-thruster Q-thruster Improved Diametric Drive Improved Diametric Drive Cooled Impulse Thruster Cooled Impulse Thruster > --- UTILITY ---------- Experimental Coolant Injector Advanced Weight Redist. System Improved Targeting Computer Advanced Weapon Cycler Advanced Transmission Jammer Advanced Force Field Improved System Shield > --- WEAPON ----------- Core Cannon Core Stripper > --- INVENTORY -------- Supercharged TR Field Lobotomy Kit Sigix Corpse Sigix Corpse [Rating: 195] Favorites ----------- Power Light Nuclear Core Engine Light Ion Engine Power Core Light Nuclear Core Reactor Particle Reactor Propulsion Improved VTOL Module Leg Aluminum Leg Hover Unit Combat Airjet Flight Unit Improved VTOL Module Utility Hacking Suite Device Improved Heat Sink Processor Advanced Target Analyzer Hackware Hacking Suite Protection Light Armor Plating Weapon Enhanced Autogun Energy Gun Spread Laser Energy Cannon Beam Cannon Ballistic Gun Enhanced Autogun Ballistic Cannon Compact Mass Driver Launcher Advanced EMP Blaster Special Weapon Improved Remote Datajack Impact Weapon Core Stripper Build | -11 -10 -10 -9 -9 -9 -8 -8 -7 -7 -7 -7 -7 -7 -6 -6 -6 -6 -5 -5 -4 -4 -3 -3 -3 -3 ------- Run | Jun Mat Min Mat Min Exi Min Mat Fac Was Fac Gar Fac Gar Fac Was Fac Gar Fac Gar Fac Gar Res Gar Res Qua Slots Evolved 22 | . 8 . 4 . . 1 2 2 . . 1 . . . . 1 . . . 1 1 . 1 . . Power 1 | . . . . . . . 1 . . . . . . . . . . . . . . . . . . Propulsion 8 | . 3 . 2 . . . . . . . . . . . . 1 . . . 1 1 . . . . Utility 10 | . 4 . 1 . . 1 1 1 . . 1 . . . . . . . . . . . 1 . . Weapon 3 | . 1 . 1 . . . . 1 . . . . . . . . . . . . . . . . . Parts Attached 277 | . 17 4 32 2 5 . 31 26 4 11 6 1 1 8 1 13 . 6 8 22 23 5 23 8 20 Power 20 | . 2 1 3 . . . 2 3 1 1 1 . . 1 1 . . 1 1 1 . . . 1 . Engine 6 | . 2 . 2 . . . . 2 . . . . . . . . . . . . . . . . . Core 7 | . . 1 1 . . . 2 1 . 1 1 . . . . . . . . . . . . . . Reactor 7 | . . . . . . . . . 1 . . . . 1 1 . . 1 1 1 . . . 1 . Propulsion 61 | . 1 1 9 . . . 13 4 1 4 4 1 . 1 . 3 . . . 8 3 5 . 1 2 Treads . | . . . . . . . . . . . . . . . . . . . . . . . . . . Leg . | . . . . . . . . . . . . . . . . . . . . . . . . . . Wheel . | . . . . . . . . . . . . . . . . . . . . . . . . . . Hover 1 | . . 1 . . . . . . . . . . . . . . . . . . . . . . . Flight 60 | . 1 . 9 . . . 13 4 1 4 4 1 . 1 . 3 . . . 8 3 5 . 1 2 Utility 97 | . 5 2 11 1 1 . 8 7 1 5 1 . 1 1 . 3 . . 2 7 16 . 9 5 11 Device 40 | . 2 2 3 1 . . 3 1 . 4 . . . . . . . . 2 6 5 . . 2 9 Storage . | . . . . . . . . . . . . . . . . . . . . . . . . . . Processor 16 | . 2 . 2 . 1 . 1 3 . . 1 . 1 . . . . . . . 1 . . 3 1 Hackware 39 | . . . 5 . . . 4 3 1 1 . . . 1 . 3 . . . 1 10 . 9 . 1 Protection 2 | . 1 . 1 . . . . . . . . . . . . . . . . . . . . . . Artifact . | . . . . . . . . . . . . . . . . . . . . . . . . . . Weapon 99 | . 9 . 9 1 4 . 8 12 1 1 . . . 5 . 7 . 5 5 6 4 . 14 1 7 Energy Gun 7 | . 1 . 1 1 1 . . 2 . . . . . 1 . . . . . . . . . . . Energy Cannon 32 | . 4 . 2 . . . . 4 . . . . . 2 . 3 . 2 2 4 . . 7 . 2 Ballistic Gun 38 | . 3 . 4 . 1 . 6 4 1 1 . . . 2 . 4 . 3 3 2 3 . . . 1 Ballistic Cannon 1 | . . . . . . . . . . . . . . . . . . . . . . . . . 1 Launcher 8 | . 1 . 2 . 1 . 2 2 . . . . . . . . . . . . . . . . . Special Weapon 12 | . . . . . 1 . . . . . . . . . . . . . . . 1 . 7 1 2 Impact Weapon 1 | . . . . . . . . . . . . . . . . . . . . . . . . . 1 Slashing Weapon . | . . . . . . . . . . . . . . . . . . . . . . . . . . Piercing Weapon . | . . . . . . . . . . . . . . . . . . . . . . . . . . Special Melee Weapon . | . . . . . . . . . . . . . . . . . . . . . . . . . . Unidentified Prototypes 22 | . . . 5 1 . . 1 4 . . . 1 . . . . . . . 5 . 1 . 2 2 Corrupted Parts 2 | . . . . . . . . . 2 . . . . . . . . . . . . . . . . System Corruption 4 | . . . . . . . . . 4 . . . . . . . . . . . . . . . . Parts Lost 8 | . 1 2 1 . . . 2 . . . . 1 . 1 . . . . . . . . . . . Power 3 | . 1 . 1 . . . 1 . . . . . . . . . . . . . . . . . . Propulsion 2 | . . 1 . . . . . . . . . 1 . . . . . . . . . . . . . Utility 3 | . . 1 . . . . 1 . . . . . . 1 . . . . . . . . . . . Weapon . | . . . . . . . . . . . . . . . . . . . . . . . . . . Highest Loss Streak 2 | . 1 2 1 . . . 2 . . . . 1 . 1 . . . . . . . . . . . To Critical Strikes . | . . . . . . . . . . . . . . . . . . . . . . . . . . Average Slot Usage (%) 93 | . 73 68 93 100 95 98 98 97 99 99 100 100 100 100 100 100 100 100 99 96 94 96 92 94 75 Engine 1 | . 11 1 2 . . . . 4 2 . . . . . . . . . . . . . . . . Core 3 | . . 6 4 6 6 5 8 3 4 4 4 4 4 4 4 4 4 4 4 . . . . . . Reactor 2 | . . . . . . . . . 1 4 4 4 4 4 4 4 4 4 4 7 8 8 3 5 7 Flight 26 | . 6 2 29 37 37 36 32 29 28 28 27 27 27 27 27 29 30 30 30 29 30 32 30 30 31 Device 5 | . 14 18 8 1 1 . 2 1 . 1 . . . . . . . . 1 10 12 8 3 . 14 Processor 7 | . 14 16 11 6 10 11 10 6 4 . 2 4 4 4 4 4 4 4 4 4 6 8 2 2 2 Hackware 26 | . . . 17 29 25 24 27 31 37 38 40 40 40 40 40 39 39 39 37 26 20 24 34 38 4 Energy Cannon 3 | . 10 16 6 . . . . 3 4 3 . . . 1 . 1 . 1 . . . . 1 . 4 Ballistic Gun 11 | . 3 . 9 9 4 5 8 14 14 14 18 18 18 16 18 15 17 15 16 15 12 12 11 11 5 Launcher 1 | . 3 . 1 6 4 5 4 . . . . . . . . . . . . . . . . . . Naked Turns . | . . . . . . . . . . . . . . . . . . . . . . . . . . Heaviest Build 69 | 4 16 16 17 18 18 17 26 36 37 39 35 35 35 38 37 42 37 42 47 56 65 62 66 50 69 Greatest Support 80 | 10 10 17 38 33 33 33 35 35 37 38 42 42 42 43 43 46 44 44 44 56 62 68 68 71 80 Greatest Overweight (x) 5 | . 1 1 1 . . . . 1 . 1 . . . . . . 4 . 5 1 1 1 . . . Average Overweight (x) . | . . . . . . . . . . . . . . . . . . . . . . . . . . Largest Inventory Capacity 4 | . . . 1 1 1 2 2 3 3 3 3 3 3 4 4 4 4 4 4 4 4 4 4 4 4 Average Capacity 2 | . . . . 1 1 1 2 2 3 3 3 3 3 3 4 4 4 4 4 4 4 4 4 4 4 Most Carried 4 | . . . 1 1 1 1 2 3 3 3 3 3 3 4 4 4 4 4 4 4 4 4 4 4 4 Average Carried 2 | . . . . 1 . 1 1 2 2 2 2 3 2 3 4 3 3 4 3 3 3 4 3 3 3 Final Capacity 4 | . . . 1 1 1 2 2 3 3 3 3 3 3 4 4 4 4 4 4 4 4 4 4 4 4 Final Carried 4 | . . . 1 1 1 1 2 2 3 3 3 3 3 4 4 4 4 4 4 4 4 4 4 4 3 Class Distribution -------------------- 59% | Wizard-Sprinter 17% | Scavenger-Mutant 10% | Commander-Sprinter 5% | Wizard-Gunner 3% | Hacker-Sprinter Dominant Class ---------------- Scavenger-Mutant | -10/Materials Scavenger-Mutant | -10/Mines Wizard-Sprinter | -9/Materials Wizard-Sprinter | -9/Mines Hacker-Sprinter | -9/Exiles Hacker-Sprinter | -8/Mines Wizard-Sprinter | -8/Materials Wizard-Sprinter | -7/Factory Wizard-Sprinter | -7/Waste Wizard-Sprinter | -7/Factory Wizard-Sprinter | -7/Garrison Wizard-Sprinter | -7/Factory Wizard-Sprinter | -7/Garrison Wizard-Sprinter | -6/Factory Wizard-Sprinter | -6/Waste Wizard-Sprinter | -6/Factory Wizard-Sprinter | -6/Garrison Wizard-Sprinter | -5/Factory Wizard-Sprinter | -5/Garrison Wizard-Sprinter | -4/Factory Commander-Sprinter | -4/Garrison Commander-Sprinter | -3/Research Commander-Sprinter | -3/Garrison Commander-Sprinter | -3/Research Hacker-Sprinter | -3/Quarantine Resources | -11 -10 -10 -9 -9 -9 -8 -8 -7 -7 -7 -7 -7 -7 -6 -6 -6 -6 -5 -5 -4 -4 -3 -3 -3 -3 ----------- Run | Jun Mat Min Mat Min Exi Min Mat Fac Was Fac Gar Fac Gar Fac Was Fac Gar Fac Gar Fac Gar Res Gar Res Qua Matter Collected 23661 | 200 488 77 1382 148 . 202 1529 1723 . 1956 1556 272 1794 1016 378 1606 1823 812 1579 814 1897 298 1197 546 368 Remotely 583 | . . . . . . . . 583 . . . . . . . . . . . . . . . . . Salvage Created 30600 | . 859 360 2385 552 . 215 2691 2010 399 2661 1896 321 1895 2097 765 2047 1908 1092 1454 1451 1476 212 1078 598 178 Parts 1620 | . 67 5 172 20 . 7 136 108 10 153 114 12 84 97 10 108 86 54 87 67 92 18 90 14 9 Haulers Intercepted 35 | . 2 . 6 . . . 4 2 . 5 . 1 . 2 . 3 . 2 . 3 . 1 . 3 1 Recyclers Shooed 10 | . . . 3 1 . . . 3 . . . . . 2 . 1 . . . . . . . . . Parts Field Recycled . | . . . . . . . . . . . . . . . . . . . . . . . . . . Retrieved Matter . | . . . . . . . . . . . . . . . . . . . . . . . . . . Parts Self-Destructed . | . . . . . . . . . . . . . . . . . . . . . . . . . . Prevented . | . . . . . . . . . . . . . . . . . . . . . . . . . . Kills | -11 -10 -10 -9 -9 -9 -8 -8 -7 -7 -7 -7 -7 -7 -6 -6 -6 -6 -5 -5 -4 -4 -3 -3 -3 -3 ------- Run | Jun Mat Min Mat Min Exi Min Mat Fac Was Fac Gar Fac Gar Fac Was Fac Gar Fac Gar Fac Gar Res Gar Res Qua Combat Hostiles Destroyed 539 | . 23 12 51 6 . 6 56 27 2 49 41 4 37 24 3 34 30 20 32 25 32 4 20 1 . Melee 1 | . . . . . . . . . . . . . . . . . . 1 . . . . . . . Guns 451 | . 5 . 21 6 . 6 48 27 2 43 41 4 37 20 3 34 30 19 32 22 27 4 19 1 . Cannons 57 | . 12 11 30 . . . . . . . . . . 1 . . . . . . 3 . . . . AOE 24 | . 6 . . . . . 8 . . 5 . . . 2 . . . . . 3 . . . . . Classes Destroyed 23 | . 9 2 3 . . . 1 2 1 1 . . 1 1 . . 1 1 . . . . . . . Worker 27 | . 3 . 3 2 . . 7 1 . 5 . . . 2 . 2 . . . 2 . . . . . Builder 13 | . 2 . 3 1 . . 3 1 . 1 . . . 1 . . . 1 . . . . . . . Tunneler 7 | . 1 . . . . . . 2 . 1 . . . 1 . 2 . . . . . . . . . Hauler 35 | . 2 . 6 . . . 4 2 . 5 . 1 . 2 . 3 . 2 . 3 . 1 . 3 1 Recycler 23 | . 1 1 3 1 . 1 1 9 . 2 . . . 2 . 1 . . . 1 . . . . . Carrier 1 | . . . . . . . . . . . . . . . . . 1 . . . . . . . . Mechanic 4 | . . . 2 . . . 1 . . . . . . 1 . . . . . . . . . . . Operator 26 | . 2 . 2 . . . 4 2 . 3 . . . 2 . 5 . 3 . 2 . . . . 1 Watcher 36 | . 3 . 5 . . . 4 3 . 6 1 1 1 2 . 4 . 1 . 2 . 2 . . 1 Swarmer 113 | . 3 . 10 4 . 3 7 5 . 17 10 . 9 . . 8 . 10 5 10 9 . 3 . . Cutter 11 | . . . . . . . . . . . . . 2 . . 2 . . 3 . 2 . 2 . . Saboteur 1 | . . . . . . . . . . . . . . . . . . 1 . . . . . . . Grunt 232 | . 20 2 30 . . 2 38 11 . 19 14 2 18 13 . 13 9 3 19 8 3 2 6 . . Brawler 12 | . . . 1 . . 1 3 1 . 1 . . . 2 . . 1 . . . . 1 1 . . Duelist 11 | . . . . . . . 1 1 . 1 . . 1 . . . 5 . . 1 1 . . . . Protector 1 | . . . . . . . . . . . . . . 1 . . . . . . . . . . . Sentry 93 | . . . 10 2 . . 7 7 . 5 13 2 5 6 . 7 7 5 2 1 13 . 1 . . Demolisher 3 | . . 1 . . . . . . . . . . . . . 2 . . . . . . . . . Hunter 27 | . . . . . . . . 1 . 4 3 . 2 2 . . 5 1 2 1 2 1 1 2 . Programmer 23 | . . . . . . . . 1 . 1 1 . . . . 2 3 . 2 4 2 . 7 . . Heavy 1 | . . . . . . . . . . 1 . . . . . . . . . . . . . . . Compactor 5 | . . . . . . . . . 2 . . . . . 3 . . . . . . . . . . Assembled 9 | . . 9 . . . . . . . . . . . . . . . . . . . . . . . Thug 3 | . . 1 . 2 . . . . . . . . . . . . . . . . . . . . . Best Kill Streak 31 | . 9 9 14 4 . 6 31 14 2 15 11 4 11 13 1 14 9 10 13 23 10 6 8 2 2 Combat Bots Only 17 | . 8 9 7 4 . 6 17 5 2 11 11 4 10 12 1 10 9 10 13 17 10 3 8 1 . Max Kills in Single Turn 4 | . 2 1 3 2 . 1 4 2 2 4 3 1 2 2 1 2 2 2 3 3 2 2 2 1 1 Gunslinging 2 | . . . 2 1 . . . 1 1 1 2 . 1 . . 1 1 1 2 1 . 1 1 . . Exploded 3 | . 2 . . . . . 3 . . 3 . . . 1 . . . . . 2 . . . . . Melee 1 | . . . . . . . . . . . . . . . . . . 1 . . . . . . . Uniques/NPCs Destroyed 1 | . . . . 1 . . . . . . . . . . . . . . . . . . . . . YI-UF0 (-9/Mines) Combat | -11 -10 -10 -9 -9 -9 -8 -8 -7 -7 -7 -7 -7 -7 -6 -6 -6 -6 -5 -5 -4 -4 -3 -3 -3 -3 -------- Run | Jun Mat Min Mat Min Exi Min Mat Fac Was Fac Gar Fac Gar Fac Was Fac Gar Fac Gar Fac Gar Res Gar Res Qua Damage Taken 17197 | . 875 919 1190 121 . 211 1782 617 . 1142 714 74 827 800 79 1079 1212 733 792 1105 968 108 515 115 1219 Core 13763 | . 700 704 964 101 . 183 1450 483 . 907 568 58 655 630 62 863 976 604 637 889 773 89 416 95 956 Absorbed by Shields 694 | . . . . . . . 85 . . . . . . . . 12 . . 46 . . . . . 551 Redirected to Core 11263 | . 459 580 724 64 . 100 1165 393 . 785 474 42 553 552 62 715 814 446 551 738 680 67 346 70 883 Regen/Repaired (Parts) 18 | . . . . . . . . . . . . . . . 18 . . . . . . . . . . Core Remaining (%) 78 | 100 . 22 . . . 97 43 . . . . . 80 . . . 82 . 100 . 100 . . . . Volleys Fired 2060 | . 123 65 217 26 . 24 193 146 21 128 93 13 110 74 23 108 114 61 100 54 150 14 131 36 36 Largest 4 | . 2 2 3 2 . 2 3 4 3 4 4 4 4 4 4 4 4 4 4 4 4 3 4 3 3 Hottest 225 | . 120 120 136 90 . 90 90 165 75 100 100 100 100 110 100 105 100 110 105 110 110 120 225 120 145 Shots Fired 5671 | . 180 130 480 43 . 44 390 391 60 387 371 52 433 260 92 376 454 202 391 200 362 42 221 60 50 Gun 4797 | . 43 . 228 34 . 44 377 360 58 378 371 52 433 236 92 369 454 184 388 192 283 42 126 36 17 Cannon 683 | . 111 130 222 . . . . 28 2 9 . . . 24 . 7 . 18 3 8 35 . 64 . 22 Launcher 81 | . 26 . 30 9 . . 13 3 . . . . . . . . . . . . . . . . . Special 110 | . . . . . . . . . . . . . . . . . . . . . 44 . 31 24 11 Kinetic 4690 | . 43 . 228 27 . 24 306 351 58 378 371 52 433 234 92 369 454 184 388 192 283 42 126 36 19 Thermal 790 | . 111 130 222 7 . 20 71 37 2 9 . . . 26 . 7 . 18 3 8 35 . 64 . 20 Explosive 26 | . 26 . . . . . . . . . . . . . . . . . . . . . . . . Electromagnetic 55 | . . . 30 9 . . 13 3 . . . . . . . . . . . . . . . . . Robot Hit Streak 67 | . 16 11 34 26 . 55 67 32 23 46 22 33 22 36 36 25 35 32 38 20 44 16 30 39 14 Robot Miss Streak 6 | . 4 2 4 2 . 3 2 5 2 3 3 2 2 2 1 3 6 4 4 3 4 2 3 1 4 Penetration Max 2 | . . . . . . . . . . . . . . . . . . . . . . 1 2 1 1 Secondary Targets 134 | . 2 . 8 1 . 1 12 4 2 17 10 . 16 2 1 12 9 6 10 8 6 1 6 . . Max Gunslinging Chain 2 | . 1 . 2 1 . 1 1 1 2 2 2 . 2 1 1 1 1 1 2 2 1 1 2 . . Shots Hit Robots 3400 | . 69 75 225 28 . 30 291 207 52 259 202 40 182 178 84 258 299 139 173 147 244 31 113 53 21 Core Hits 1592 | . 54 26 81 35 . 35 237 96 10 138 105 15 78 88 17 110 95 51 82 79 81 14 43 13 9 Critical Kills 91 | . 1 1 1 . . . 2 1 1 . . . 4 9 . 10 6 5 4 3 9 7 21 5 1 Critical Parts Destroyed 122 | . . . 1 1 . . 1 1 . . . . 6 9 1 10 14 7 9 9 3 8 28 12 2 Critical Strikes 230 | . 1 1 2 1 . . 3 2 1 . 1 . 13 18 3 22 20 13 15 13 12 16 52 18 3 Meltdown 5 | . . 1 . . . . . . . . . . . 1 . . . . . . 2 . 1 . . Destroy 225 | . 1 . 2 1 . . 3 2 1 . 1 . 13 17 3 22 20 13 15 13 10 16 51 18 3 Melee Attacks . | . . . . . . . . . . . . . . . . . . . . . . . . . . Impact . | . . . . . . . . . . . . . . . . . . . . . . . . . . Slashing . | . . . . . . . . . . . . . . . . . . . . . . . . . . Piercing . | . . . . . . . . . . . . . . . . . . . . . . . . . . Sneak Attacks . | . . . . . . . . . . . . . . . . . . . . . . . . . . Combat Hostiles . | . . . . . . . . . . . . . . . . . . . . . . . . . . Follow-up Attacks . | . . . . . . . . . . . . . . . . . . . . . . . . . . Damage Inflicted 66263 | . 1632 1343 4666 799 . 578 5868 3908 954 6364 3786 727 3392 4078 1473 4923 5134 2956 3436 3855 4264 267 1108 252 500 Guns 53511 | . 205 . 1703 506 . 543 5226 3673 954 4616 3786 727 3392 2959 1473 4923 5134 2524 3436 2724 3482 267 928 252 78 Cannons 7129 | . 672 1340 2898 . . . . 58 . 224 . . . 465 . . . 300 . 65 782 . 180 . 145 Explosions 5620 | . 755 . 65 293 . 35 642 177 . 1524 . . . 654 . . . 132 . 1066 . . . . 277 Melee . | . . . . . . . . . . . . . . . . . . . . . . . . . . Ramming 3 | . . 3 . . . . . . . . . . . . . . . . . . . . . . . Kinetic 51622 | . 205 . 1703 381 . 246 3974 3458 954 4616 3786 727 3392 2959 1473 4923 5134 2524 3436 2724 3482 267 928 252 78 Thermal 9800 | . 672 1340 2898 225 . 332 1369 289 . 647 . . . 556 . . . 300 . 65 782 . 180 . 145 Explosive 3298 | . 727 . 65 . . . . 146 . 609 . . . 475 . . . 132 . 867 . . . . 277 Electromagnetic 1540 | . 28 . . 193 . . 525 15 . 492 . . . 88 . . . . . 199 . . . . . Impact . | . . . . . . . . . . . . . . . . . . . . . . . . . . Slashing . | . . . . . . . . . . . . . . . . . . . . . . . . . . Piercing . | . . . . . . . . . . . . . . . . . . . . . . . . . . Highest Corruption 14 | . 3 3 2 2 2 2 . 1 12 14 9 9 9 . . 3 4 . . 1 1 . . . 3 Average Corruption 4 | . 2 3 1 2 2 2 . 1 10 10 9 9 9 . . 3 3 . . 1 1 . . . 3 Corruption Purged 5 | . . . . . . . . . . 5 . . . . . . . . . . . . . . . Corruption Blocked . | . . . . . . . . . . . . . . . . . . . . . . . . . . Effects 167 | . 14 14 3 4 1 4 . 4 6 42 22 5 24 . . 2 15 . . . 7 . . . . Message Errors 38 | . 3 4 1 . . 2 . 1 . 16 7 1 2 . . . 1 . . . . . . . . Matter Fused 30 | . 4 3 . 2 1 1 . . 1 7 2 . 5 . . . 4 . . . . . . . . Heat Flow Errors 12 | . 1 . . 1 . . . . . 3 2 1 1 . . 1 2 . . . . . . . . Energy Discharges 25 | . 4 4 1 . . . . 1 . 2 6 . 4 . . . 2 . . . 1 . . . . Parts Rejected 2 | . . . . . . . . . 1 1 . . . . . . . . . . . . . . . Parts Fused 1 | . . . . . . . . . . 1 . . . . . . . . . . . . . . . Data Loss (minor) 18 | . 1 2 1 1 . 1 . . 1 4 2 1 1 . . . . . . . 3 . . . . Data Loss (major) 4 | . . . . . . . . . . 1 . . 2 . . . 1 . . . . . . . . Misfires 9 | . . . . . . . . . 1 2 1 1 1 . . 1 1 . . . 1 . . . . Alerts 3 | . . 1 . . . . . 1 . . . . . . . . 1 . . . . . . . . Weapon Failures 25 | . 1 . . . . . . 1 2 5 2 1 8 . . . 3 . . . 2 . . . . Overload Shots 17 | . . . . . . . . 5 . . . . . 1 . 2 . . 1 . . . 6 . 2 Overflow Damage 329 | . 1 15 61 . . . 5 7 . 82 . . . 23 . . . . . 62 . . 28 . 45 Projectiles 117 | . . 15 36 . . . . . . 4 . . . 23 . . . . . . . . 28 . 11 Explosions 212 | . 1 . 25 . . . 5 7 . 78 . . . . . . . . . 62 . . . . 34 Melee . | . . . . . . . . . . . . . . . . . . . . . . . . . . Knockbacks . | . . . . . . . . . . . . . . . . . . . . . . . . . . Impact . | . . . . . . . . . . . . . . . . . . . . . . . . . . Kinetic . | . . . . . . . . . . . . . . . . . . . . . . . . . . Secondary . | . . . . . . . . . . . . . . . . . . . . . . . . . . Self-Inflicted Damage 909 | . 170 1 113 17 . . 176 11 . . . . . 187 . . . . . . 28 . 57 . 149 Shots 25 | . 7 . 6 2 . . 3 1 . . . . . 2 . . . . . . 1 . 1 . 2 Rammed 1 | . . 1 . . . . . . . . . . . . . . . . . . . . . . . Targets Rammed 1 | . . 1 . . . . . . . . . . . . . . . . . . . . . . . Kicked . | . . . . . . . . . . . . . . . . . . . . . . . . . . Crushed . | . . . . . . . . . . . . . . . . . . . . . . . . . . Highest Temperature 535 | . 180 270 328 277 . 111 270 297 40 410 343 173 535 330 212 282 318 301 330 440 122 82 233 258 96 Average Temperature 72 | . 31 118 53 63 . 36 62 39 15 77 87 64 110 88 104 78 89 83 94 105 33 27 32 35 35 Received Heat Transfer 4175 | . 348 190 318 18 . 117 816 165 . 189 135 24 267 177 . 282 297 165 209 126 123 21 42 . 146 Effects 18 | . . 1 4 1 . . . . . 1 1 . . . 2 1 3 . . 4 . . . . . Shutdowns 1 | . . . . . . . . . . . . . . . . . . . . 1 . . . . . Energy Bleed 5 | . . 1 . 1 . . . . . . 1 . . . . . . . . 2 . . . . . Interference 10 | . . . 4 . . . . . . . . . . . 2 1 3 . . . . . . . . Matter Decay 1 | . . . . . . . . . . 1 . . . . . . . . . . . . . . . Damage (minor) 1 | . . . . . . . . . . . . . . . . . . . . 1 . . . . . Siege Activations . | . . . . . . . . . . . . . . . . . . . . . . . . . . Robots Corrupted 3 | . . . . . . . . . . 2 . . . . . . . . . 1 . . . . . Combat Hostiles 1 | . . . . . . . . . . 1 . . . . . . . . . . . . . . . Parts Fried 10 | . . . . 2 . . 1 . . 4 . . . . . . . . . 1 . . 2 . . Impact Corruptions . | . . . . . . . . . . . . . . . . . . . . . . . . . . Robots Melted 5 | . . 1 . . . . . . . . . . . 1 . . . . . . 2 . 1 . . Combat Hostiles 5 | . . 1 . . . . . . . . . . . 1 . . . . . . 2 . 1 . . Parts Melted 25 | . 4 . 6 1 . . . . . . . . . 6 . . . 1 1 . 1 . 5 . . Heat Transferred 15057 | . 1369 2812 5069 305 . 450 1655 299 . 596 . . . 700 . . . 450 . 100 872 . 180 . 200 Parts Sabotaged 2 | . . . . . . . . . . . . . . . . . . 2 . . . . . . . Parts Stolen . | . . . . . . . . . . . . . . . . . . . . . . . . . . Parts Stripped . | . . . . . . . . . . . . . . . . . . . . . . . . . . Power Chain Reactions 9 | . . . 2 . . . 2 1 . 3 . . . . . . . . . 1 . . . . . Missiles Intercepted . | . . . . . . . . . . . . . . . . . . . . . . . . . . Alert | -11 -10 -10 -9 -9 -9 -8 -8 -7 -7 -7 -7 -7 -7 -6 -6 -6 -6 -5 -5 -4 -4 -3 -3 -3 -3 ------- Run | Jun Mat Min Mat Min Exi Min Mat Fac Was Fac Gar Fac Gar Fac Was Fac Gar Fac Gar Fac Gar Res Gar Res Qua Peak Influence 3133 | . 974 444 1431 910 . 375 1526 1575 582 1846 2878 1761 2707 2502 1129 2548 3133 2999 3033 2136 2988 2054 2992 2113 1960 Initial 2099 | . . 379 67 525 . . 146 684 551 407 1292 1510 1232 1421 1100 790 1783 1644 2099 1591 1495 1680 1540 1683 1154 Average 1420 | . 677 352 909 778 . 203 942 1042 576 729 2183 1589 2000 1916 1112 1912 2586 2203 2637 1428 2273 1911 2629 1911 1753 Maximum Alert Level 5 | . 3 2 4 3 . 1 4 4 2 5 5 5 5 5 4 5 5 5 5 5 5 5 5 5 5 Low Security (%) 3 | . 10 3 3 . . 61 4 . . 11 . . . . . . . . . . . . . . . Level 1 7 | . 2 63 10 . . 38 3 . . 17 . . . . . . . . . . . . . . . Level 2 11 | . 32 33 17 13 . . 16 7 100 26 . . . . . . . . . . . . . . . Level 3 17 | . 54 . 28 86 . . 42 50 . 10 . . . . . 6 . . . . . . . . . Level 4 20 | . . . 39 . . . 33 42 . 30 18 65 17 19 100 19 . 1 . 82 6 . 2 . . Level 5 33 | . . . . . . . . . . . 81 6 82 70 . 74 100 29 100 17 93 42 97 16 . High Security 4 | . . . . . . . . . . 2 . 27 . 9 . . . 68 . . . 57 . 83 . Max Security 1 | . . . . . . . . . . . . . . . . . . . . . . . . . 99 Sterilizations 2 | . . . 1 . . . 1 . . . . . . . . . . . . . . . . . . Squads Dispatched 165 | . 7 . 12 . . . 11 14 . 24 . 4 . 13 . 28 . 16 . 12 . 2 . 9 13 Investigation 82 | . 5 . 10 . . . 6 11 . 15 . 3 . 6 . 10 . 7 . 6 . 1 . 2 . Extermination 5 | . . . . . . . . 1 . 2 . . . . . 1 . . . 1 . . . . . Reinforcement 25 | . 2 . 1 . . . 3 1 . 3 . . . 3 . 6 . . . 3 . . . 2 1 Assault 41 | . . . 1 . . . 2 . . 1 . 1 . 3 . 6 . 8 . 2 . . . 5 12 Garrison 12 | . . . . . . . . 1 . 3 . . . 1 . 5 . 1 . . . 1 . . . Intercept . | . . . . . . . . . . . . . . . . . . . . . . . . . . Searches Triggered . | . . . . . . . . . . . . . . . . . . . . . . . . . . Construction Impeded 4 | . . . . . . . 1 . . 1 . . . . . 2 . . . . . . . . . Haulers Reinforced 6 | . . . . . . . . 1 . 1 . . . 2 . 1 . . . 1 . . . . . Active Scanning Responses . | . . . . . . . . . . . . . . . . . . . . . . . . . . Cargo Convoy Interrupts . | . . . . . . . . . . . . . . . . . . . . . . . . . . Stealth | -11 -10 -10 -9 -9 -9 -8 -8 -7 -7 -7 -7 -7 -7 -6 -6 -6 -6 -5 -5 -4 -4 -3 -3 -3 -3 --------- Run | Jun Mat Min Mat Min Exi Min Mat Fac Was Fac Gar Fac Gar Fac Was Fac Gar Fac Gar Fac Gar Res Gar Res Qua Distress Signals 18 | . . . 2 . . . 2 1 . 1 . . 1 1 . 3 . . . 3 . 2 . . 2 Communications Jammed 118 | . . . . . . . . . . . . . . . . . . . . . . . . . 118 Distress Signals 118 | . . . . . . . . . . . . . . . . . . . . . . . . . 118 Times Spotted 942 | . 34 14 64 6 . 8 84 30 5 73 45 4 36 38 6 67 34 48 35 65 51 12 42 19 122 Peak Tracking Total 30 | . 8 7 7 4 . 3 16 4 5 10 6 2 6 12 3 7 8 23 8 19 10 5 6 15 30 Tactical Retreats 43 | . 1 1 2 . . . 4 . . 7 1 . 1 2 1 2 1 7 1 8 . . . . 4 Traps | -11 -10 -10 -9 -9 -9 -8 -8 -7 -7 -7 -7 -7 -7 -6 -6 -6 -6 -5 -5 -4 -4 -3 -3 -3 -3 ------- Run | Jun Mat Min Mat Min Exi Min Mat Fac Was Fac Gar Fac Gar Fac Was Fac Gar Fac Gar Fac Gar Res Gar Res Qua Traps Triggered 46 | . 4 . . . . . 3 3 . 4 4 1 1 1 . 3 8 . 5 2 3 . 2 1 1 Indirectly 3 | . . . . . . . . . . 3 . . . . . . . . . . . . . . . Trap Hack Attempts . | . . . . . . . . . . . . . . . . . . . . . . . . . . Triggered . | . . . . . . . . . . . . . . . . . . . . . . . . . . Disarmed 20 | . . . . . . . . . . 12 . . 2 . . . . 6 . . . . . . . Reprogrammed 60 | . . . 2 . . . 1 11 . 16 3 . . . . 5 5 9 . 8 . . . . . Reused 10 | . . . . . . . 1 2 . 1 . . . . . . . 1 . 5 . . . . . Traps Extracted . | . . . . . . . . . . . . . . . . . . . . . . . . . . Installed 4 | . . . . 4 . . . . . . . . . . . . . . . . . . . . . Triggered 11 | . . . . . . . 1 2 . 2 . . . . . . . 1 . 5 . . . . . Machines | -11 -10 -10 -9 -9 -9 -8 -8 -7 -7 -7 -7 -7 -7 -6 -6 -6 -6 -5 -5 -4 -4 -3 -3 -3 -3 ---------- Run | Jun Mat Min Mat Min Exi Min Mat Fac Was Fac Gar Fac Gar Fac Was Fac Gar Fac Gar Fac Gar Res Gar Res Qua Machines Disabled 298 | . 29 6 48 12 . 6 27 33 . 23 6 . 13 16 . 14 4 10 11 8 8 1 12 . 11 Max in Single Turn 7 | . 3 1 3 4 . 1 3 2 . 7 1 . 2 5 . 3 1 6 2 2 2 1 2 . 1 Garrison Access 4 | . . . . . . . . . . 1 . . . 1 . 2 . . . . . . . . . Garrison Relay 34 | . . . . . . . . . . . 5 . 4 . . . 4 . 8 . 5 . 8 . . Phase Generator 4 | . . . . . . . . . . . 1 . 1 . . . . . . . 1 . 1 . . Machines Repaired 6 | . . . 1 . . . 3 . . 1 1 . . . . . . . . . . . . . . Machines Sabotaged . | . . . . . . . . . . . . . . . . . . . . . . . . . . Overloaded Fab Kills 10 | . . . . . . . . . . 7 . . . . . . . . . 3 . . . . . Hacking | -11 -10 -10 -9 -9 -9 -8 -8 -7 -7 -7 -7 -7 -7 -6 -6 -6 -6 -5 -5 -4 -4 -3 -3 -3 -3 --------- Run | Jun Mat Min Mat Min Exi Min Mat Fac Was Fac Gar Fac Gar Fac Was Fac Gar Fac Gar Fac Gar Res Gar Res Qua Machines Accessed 160 | . 6 . 14 . 1 . 8 16 . 29 2 2 3 9 . 19 3 8 2 26 3 5 1 3 . Terminals 98 | . 5 . 10 . . . 7 10 . 14 2 . 3 5 . 9 3 5 2 15 3 1 1 3 . Fabricators 15 | . . . . . . . . 1 . 5 . . . 1 . 2 . . . 5 . 1 . . . Repair Stations . | . . . . . . . . . . . . . . . . . . . . . . . . . . Recycling Units 22 | . 1 . 2 . . . . 3 . 6 . 1 . 1 . 3 . 1 . 3 . 1 . . . Scanalyzers 12 | . . . 2 . . . 1 2 . 2 . . . 1 . 1 . 1 . 1 . 1 . . . Garrison Access 12 | . . . . . . . . . . 2 . 1 . 1 . 4 . 1 . 2 . 1 . . . Total Hacks 1067 | . 26 . 72 . 1 . 58 126 . 232 16 12 19 54 . 135 36 78 18 151 8 11 2 12 . Successful 799 | . 13 . 62 . 1 . 46 77 . 183 11 11 13 37 . 116 21 63 12 116 6 7 1 3 . Failed 264 | . 13 . 10 . . . 11 49 . 48 5 1 6 17 . 19 15 14 5 35 2 4 1 9 . Catastrophic 21 | . 2 . . . . . 2 6 . 3 . . 1 2 . . . 1 . 2 . . . 2 . Database Lockouts 4 | . . . . . . . 1 . . 1 . . . . . . . 1 1 . . . . . . Manual 552 | . 14 . 35 . 1 . 31 59 . 107 14 10 16 24 . 70 33 36 16 78 4 4 . . . Terminals 787 | . 22 . 63 . . . 50 89 . 152 16 . 19 34 . 90 36 63 18 110 8 3 2 12 . Fabricators 42 | . . . . . . . . 7 . 20 . . . 2 . 4 . . . 8 . 1 . . . Repair Stations . | . . . . . . . . . . . . . . . . . . . . . . . . . . Recycling Units 120 | . 4 . 7 . . . . 17 . 37 . 5 . 5 . 16 . 5 . 19 . 5 . . . Scanalyzers 54 | . . . 2 . . . 8 13 . 10 . . . 7 . 3 . 3 . 7 . 1 . . . Garrison Access 63 | . . . . . . . . . . 13 . 7 . 6 . 22 . 7 . 7 . 1 . . . Terminal Hacks 453 | . 6 . 41 . 1 . 29 41 . 100 4 . 10 14 . 67 18 40 7 67 4 . 1 3 . Record 48 | . . . 2 . . . 4 2 . 17 . . . 3 . 4 . 7 . 8 . . . 1 . Part Schematic 38 | . . . . . . . . 2 . 6 . . . 2 . 17 . 3 . 8 . . . . . Robot Schematic 8 | . . . . . . . . 1 . 3 . . . . . 1 . . . 3 . . . . . Robot Analysis 38 | . 2 . 3 . . . 5 9 . 2 . . . 1 . 4 . 4 . 8 . . . . . Prototype ID Bank 86 | . . . 5 . . . 4 4 . 13 1 . 4 2 . 21 13 3 2 13 . . . 1 . Open Door 2 | . . . . . . . . . . . . . . . . . 1 . . . 1 . . . . Open DSF 2 | . . . . . . . . . . . . . . 1 . . . . . 1 . . . . . Level Access Points 7 | . . . 1 . . . 1 . . 2 . . . . . 1 . 1 . 1 . . . . . Branch Access Points 12 | . 1 . 2 . . . 2 1 . 3 . . . 1 . . . 1 . 1 . . . . . Emergency Access Points 21 | . . . 3 . . . . 4 . 2 1 . 1 . . 1 1 2 1 2 1 . 1 1 . Machine Index 7 | . . . . . . . 1 . . 2 . . . 1 . 1 . . . 2 . . . . . Terminal Index 5 | . 1 . 1 . . . . 1 . 1 . . 1 . . . . . . . . . . . . Fabricator Index 4 | . . . . . . . . 1 . 1 . . . . . 1 . . . 1 . . . . . Repair Station Index 2 | . . . . . . . . 1 . 1 . . . . . . . . . . . . . . . Recycling Unit Index 1 | . . . . . . . . . . 1 . . . . . . . . . . . . . . . Garrison Index 6 | . . . . . . . 1 1 . 1 . . . . . 1 . 1 . 1 . . . . . Alert Level 9 | . . . 1 . . . 1 1 . 4 . . . . . . . 2 . . . . . . . Unreport Threat 32 | . . . 7 . . . 5 3 . 7 . . . . . 5 . 1 . 4 . . . . . Locate Traps 9 | . . . . . . . . . . 2 . . . . . 1 . 2 3 . 1 . . . . Disarm Traps 7 | . . . . . . . . . . 3 . . 2 . . . . 2 . . . . . . . Reprogram Traps 33 | . . . 4 . . . 2 4 . 9 1 . . . . 3 2 3 . 5 . . . . . Dispatch Records 2 | . . . 1 . . . . . . 1 . . . . . . . . . . . . . . . Maintenance Status 2 | . . . 1 . . . . . . . . . . . . . . 1 . . . . . . . Security Status 3 | . . . . . . . . . . 1 . . . 1 . . . 1 . . . . . . . Surveillance Status 1 | . . . . . . . . . . 1 . . . . . . . . . . . . . . . Transport Status 6 | . . . . . . . . . . 3 . . . . . 1 . 1 . 1 . . . . . Investigation Status 1 | . . . 1 . . . . . . . . . . . . . . . . . . . . . . Reinforcement Status 1 | . . . 1 . . . . . . . . . . . . . . . . . . . . . . Recall Investigation 4 | . . . 1 . . . . 1 . 1 . . . . . . . . . 1 . . . . . Recall Reinforcements 3 | . . . 1 . . . . . . 2 . . . . . . . . . . . . . . . Recall Assault 2 | . . . . . . . . . . 2 . . . . . . . . . . . . . . . Hauler Manifests 11 | . 1 . 2 . . . 1 1 . 1 . . . . . 1 . 2 . 2 . . . . . Registered Components 6 | . . . 1 . . . 1 1 . 1 . . . . . . . 1 . 1 . . . . . Registered Prototypes 5 | . . . 1 . . . 1 . . . . . . 1 . 1 . . . 1 . . . . . Zone Layout 22 | . 1 . 2 . . . . 3 . 7 . . . 1 . 3 . 2 . 3 . . . . . Garrison Registry 3 | . . . . . . . . . . . . . 1 . . . . . 1 . 1 . . . . Security Stations 3 | . . . . . . . . . . . 1 . 1 . . . 1 . . . . . . . . EX-Prototype ID Bank 1 | . . . . . 1 . . . . . . . . . . . . . . . . . . . . Fabricator Hacks 12 | . . . . . . . . 3 . 6 . . . 1 . 1 . . . 1 . . . . . Network Status 5 | . . . . . . . . 1 . 2 . . . . . 1 . . . 1 . . . . . Load Schematic 3 | . . . . . . . . 1 . 2 . . . . . . . . . . . . . . . Build 4 | . . . . . . . . 1 . 2 . . . 1 . . . . . . . . . . . Repair Station Hacks . | . . . . . . . . . . . . . . . . . . . . . . . . . . Recycling Unit Hacks 36 | . 2 . 5 . . . . 3 . 10 . 1 . 1 . 4 . 1 . 7 . 2 . . . Report Inventory 23 | . 1 . 3 . . . . 3 . 6 . 1 . 1 . 3 . 1 . 3 . 1 . . . Retrieve Matter 2 | . . . . . . . . . . 1 . . . . . . . . . 1 . . . . . Retrieve Components 11 | . 1 . 2 . . . . . . 3 . . . . . 1 . . . 3 . 1 . . . Scanalyzer 43 | . . . . . . . 8 11 . 6 . . . 7 . 2 . 2 . 7 . . . . . Insert Component 17 | . . . . . . . 2 5 . 2 . . . 4 . 1 . 1 . 2 . . . . . Analyze 26 | . . . . . . . 6 6 . 4 . . . 3 . 1 . 1 . 5 . . . . . Garrison Access Hacks 13 | . . . . . . . . . . 4 . 1 . 1 . 2 . 2 . 2 . 1 . . . Unlock Access 10 | . . . . . . . . . . 2 . 1 . 1 . 2 . 1 . 2 . 1 . . . Coupler Status 3 | . . . . . . . . . . 2 . . . . . . . 1 . . . . . . . Unauthorized Hacks 242 | . 5 . 16 . . . 9 19 . 57 7 9 3 13 . 40 3 18 5 32 2 4 . . . Terminals 92 | . 3 . 12 . . . 9 3 . 18 7 . 3 3 . 6 3 8 5 10 2 . . . . Track 1 | . . . . . . . . . . 1 . . . . . . . . . . . . . . . Assimilate 4 | . . . 1 . . . . 1 . 2 . . . . . . . . . . . . . . . Botnet 44 | . 3 . 4 . . . 4 2 . 6 2 . 1 3 . 6 2 4 2 4 1 . . . . Detonate 12 | . . . 1 . . . . . . 4 1 . 1 . . . . 1 1 3 . . . . . Disrupt 8 | . . . . . . . . . . 3 2 . . . . . . . . 3 . . . . . Operators 1 | . . . . . . . . . . 1 . . . . . . . . . . . . . . . Sabotage 12 | . . . 4 . . . 4 . . 1 1 . 1 . . . . . 1 . . . . . . Search 9 | . . . 2 . . . 1 . . . 1 . . . . . . 3 1 . 1 . . . . Override 1 | . . . . . . . . . . . . . . . . . 1 . . . . . . . . Fabricators 22 | . . . . . . . . 2 . 9 . . . 1 . 3 . . . 6 . 1 . . . Report 5 | . . . . . . . . 1 . 3 . . . . . 1 . . . . . . . . . Fabnet 15 | . . . . . . . . 1 . 5 . . . 1 . 2 . . . 5 . 1 . . . Overload 2 | . . . . . . . . . . 1 . . . . . . . . . 1 . . . . . Repair Stations . | . . . . . . . . . . . . . . . . . . . . . . . . . . Recycling Units 74 | . 2 . 2 . . . . 12 . 19 . 4 . 4 . 12 . 4 . 12 . 3 . . . Monitor 18 | . . . . . . . . 3 . 5 . 1 . 1 . 3 . 1 . 3 . 1 . . . Reject 18 | . . . . . . . . 3 . 5 . 1 . 1 . 3 . 1 . 3 . 1 . . . Mask 19 | . 1 . . . . . . 3 . 5 . 1 . 1 . 3 . 1 . 3 . 1 . . . Tunnel 19 | . 1 . 2 . . . . 3 . 4 . 1 . 1 . 3 . 1 . 3 . . . . . Scanalyzers 8 | . . . 2 . . . . 2 . 2 . . . . . 1 . 1 . . . . . . . Extract 8 | . . . 2 . . . . 2 . 2 . . . . . 1 . 1 . . . . . . . Garrison Access 46 | . . . . . . . . . . 9 . 5 . 5 . 18 . 5 . 4 . . . . . Restock 10 | . . . . . . . . . . 2 . 1 . 1 . 4 . 1 . 1 . . . . . Reprogram 10 | . . . . . . . . . . 2 . 1 . 1 . 4 . 1 . 1 . . . . . Intercept 10 | . . . . . . . . . . 2 . 1 . 1 . 4 . 1 . 1 . . . . . Watchers 10 | . . . . . . . . . . 2 . 1 . 1 . 4 . 1 . 1 . . . . . Jam 1 | . . . . . . . . . . 1 . . . . . . . . . . . . . . . Eject 5 | . . . . . . . . . . . . 1 . 1 . 2 . 1 . . . . . . . Data Cores Recovered 20 | . . . 2 . . . 3 2 . 3 . . . 2 . 4 . 2 . 2 . . . . . Used 12 | . . . . . . . 2 1 . 3 . . . 1 . 3 . 2 . . . . . . . Hacking Detections 102 | . 6 . 10 . . . 5 12 . 16 1 . 2 4 . 11 1 7 1 17 2 3 1 3 . Full Trace Events 31 | . 5 . 4 . . . 2 5 . 6 . . . 3 . 1 . 1 . 1 . 1 . 2 . Feedback Events 4 | . . . . . . . 1 1 . 1 . . . 1 . . . . . . . . . . . Corruption 2 | . . . . . . . . 1 . 1 . . . . . . . . . . . . . . . Hackware Fried 2 | . . . . . . . 1 . . . . . . 1 . . . . . . . . . . . Feedback Blocked . | . . . . . . . . . . . . . . . . . . . . . . . . . . Robot Schematics Acquired 8 | . . . . . . . . 1 . 3 . . . . . 1 . . . 3 . . . . . Robots Built . | . . . . . . . . . . . . . . . . . . . . . . . . . . Authchips . | . . . . . . . . . . . . . . . . . . . . . . . . . . Time . | . . . . . . . . . . . . . . . . . . . . . . . . . . Total Robot Build Rating . | . . . . . . . . . . . . . . . . . . . . . . . . . . Part Schematics Acquired 74 | . . . 2 . . . 2 12 . 16 . . . 5 . 19 . 6 . 10 . . . . 2 Parts Built 5 | . . . . . . . . 1 . 2 . . . 2 . . . . . . . . . . . Authchips . | . . . . . . . . . . . . . . . . . . . . . . . . . . Time 305 | . . . . . . . . 58 . 183 . . . 64 . . . . . . . . . . . Total Part Build Rating 26 | . . . . . . . . 3 . 7 . . . 16 . . . . . . . . . . . Parts Repaired . | . . . . . . . . . . . . . . . . . . . . . . . . . . Time . | . . . . . . . . . . . . . . . . . . . . . . . . . . Parts Recycled . | . . . . . . . . . . . . . . . . . . . . . . . . . . Recycled Matter . | . . . . . . . . . . . . . . . . . . . . . . . . . . Retrieved Matter . | . . . . . . . . . . . . . . . . . . . . . . . . . . Retrieved Components 35 | . 9 . 4 . . . . . . 10 . . . . . 2 . . . 8 . 2 . . . Parts Scanalyzed 16 | . . . . . . . 2 5 . 2 . . . 3 . 1 . 1 . 2 . . . . . Part Schematics Acquired 16 | . . . . . . . 2 5 . 2 . . . 3 . 1 . 1 . 2 . . . . . Parts Damaged 2 | . . . . . . . 1 . . . . . . . . . . . . 1 . . . . . Bothacking | -11 -10 -10 -9 -9 -9 -8 -8 -7 -7 -7 -7 -7 -7 -6 -6 -6 -6 -5 -5 -4 -4 -3 -3 -3 -3 ------------ Run | Jun Mat Min Mat Min Exi Min Mat Fac Was Fac Gar Fac Gar Fac Was Fac Gar Fac Gar Fac Gar Res Gar Res Qua Used RIF Installer 9 | . . . . . . . . . . . 2 . 1 . . . 2 . 1 . 2 . 1 . . Coupler Efficiency 1 | . . . . . . . . . . . 1 . . . . . . . . . . . . . . Hotswap 1 | . . . . . . . . . . . . . . . . . 1 . . . . . . . . Code Merge 1 | . . . . . . . . . . . . . . . . . . . . . . . 1 . . Command Fork 1 | . . . . . . . . . . . . . 1 . . . . . . . . . . . . Threat Obfuscator 1 | . . . . . . . . . . . . . . . . . . . 1 . . . . . . Zone Cloak 1 | . . . . . . . . . . . . . . . . . . . . . 1 . . . . Watcher Feeds 1 | . . . . . . . . . . . . . . . . . 1 . . . . . . . . Patrol Navigation 1 | . . . . . . . . . . . . . . . . . . . . . 1 . . . . Robots Hacked 91 | . . . . . . . . . . . . . . 2 . 10 2 1 2 . 18 1 22 21 12 Non-combat 6 | . . . . . . . . . . . . . . . . . . . . . . . . 4 2 Combat 85 | . . . . . . . . . . . . . . 2 . 10 2 1 2 . 18 1 22 17 10 Robot Hacks Applied 61 | . . . . . . . . . . . . . . . . . . . . . 18 . 20 18 5 parse_system 4 | . . . . . . . . . . . . . . . . . . . . . . . 1 2 1 map_earth 1 | . . . . . . . . . . . . . . . . . . . . . . . . 1 . locate_stockpiles 1 | . . . . . . . . . . . . . . . . . . . . . . . . 1 . find_terminals 1 | . . . . . . . . . . . . . . . . . . . . . . . . . 1 map_route 3 | . . . . . . . . . . . . . . . . . . . . . . . . 2 1 scatter_targeting 1 | . . . . . . . . . . . . . . . . . . . . . . . 1 . . overwrite_iff 9 | . . . . . . . . . . . . . . . . . . . . . 1 . 2 6 . formatsys_low 1 | . . . . . . . . . . . . . . . . . . . . . . . . . 1 formatsys_high 40 | . . . . . . . . . . . . . . . . . . . . . 17 . 16 6 1 Relay Couplers Released 73 | . . . . . . . . . . . 8 2 8 2 . 8 8 1 12 1 10 . 13 . . Ejected 6 | . . . . . . . . . . . . 2 . 1 . 2 . 1 . . . . . . . Machine Destruction 60 | . . . . . . . . . . . 8 . 8 1 . . 8 . 12 . 10 . 13 . . Programmers 7 | . . . . . . . . . . . . . . . . 6 . . . 1 . . . . . Attached 18 | . . . . . . . . . . . . . . . . . . . . . 9 . 9 . . Merged Code Value 201 | . . . . . . . . . . . . . . . . . . . . . . . 201 . . Fabnet Peak Effective % 9 | . . . . . . . . . . . . . . 9 9 9 9 9 9 2 2 9 9 9 9 Autooverrided 35 | . . . . . . . . . . . . . . 2 . 10 2 1 2 . . 1 4 5 8 Robots Rewired 19 | . . . . . . . . . . . 4 . . . . . 6 . 4 . 5 . . . . Allies Hacked . | . . . . . . . . . . . . . . . . . . . . . . . . . . Hacks Repelled . | . . . . . . . . . . . . . . . . . . . . . . . . . . Allies | -11 -10 -10 -9 -9 -9 -8 -8 -7 -7 -7 -7 -7 -7 -6 -6 -6 -6 -5 -5 -4 -4 -3 -3 -3 -3 -------- Run | Jun Mat Min Mat Min Exi Min Mat Fac Was Fac Gar Fac Gar Fac Was Fac Gar Fac Gar Fac Gar Res Gar Res Qua Total Allies 157 | . . 1 . 3 . . . . . . 6 2 2 5 18 15 9 1 7 1 27 1 26 20 13 Largest Group 39 | . . 1 . 3 3 3 . . . . 5 5 7 3 18 19 7 7 4 1 23 24 36 39 25 Highest-Rated Group 1948 | . . 31 . 40 40 40 . . . . 103 103 135 87 656 707 238 238 58 82 1136 1192 1806 1948 1297 Highest-Rated Ally 116 | . . 31 . 16 16 16 . . . . 21 21 25 29 50 54 46 46 29 82 68 68 116 116 82 Total Orders 2 | . . . . . . . . . . . . . . . . . . . . . 2 . . . . STAY 1 | . . . . . . . . . . . . . . . . . . . . . 1 . . . . FOLLOW 1 | . . . . . . . . . . . . . . . . . . . . . 1 . . . . Ally Attacks 750 | . . . . . . 13 . . . . 28 1 21 23 70 172 32 49 17 1 42 34 65 112 70 Total Damage 24380 | . . . . . . 183 . . . . 638 11 460 249 2546 4866 1188 1715 174 61 1663 1365 2621 3755 2885 Kills 122 | . . . . . . 3 . . . . 4 1 5 1 4 33 7 13 . . 9 5 12 17 8 Allies Corrupted 18 | . . . . . . . . . . . . . . . . 2 . . . . . . 1 1 14 Allies Melted 3 | . . . . . . . . . . . . . 1 . . 1 . . . . . . . . 1 Field Lobotomies 2 | . . . . . . . . . . . . . . . . . . . . . . . . . 2 Intel | -11 -10 -10 -9 -9 -9 -8 -8 -7 -7 -7 -7 -7 -7 -6 -6 -6 -6 -5 -5 -4 -4 -3 -3 -3 -3 ------- Run | Jun Mat Min Mat Min Exi Min Mat Fac Was Fac Gar Fac Gar Fac Was Fac Gar Fac Gar Fac Gar Res Gar Res Qua Robot Analysis Total 38 | . 2 . 3 . . . 5 9 . 2 . . . 1 . 4 . 4 . 8 . . . . . Derelict Logs Recovered 2 | . . 1 . 1 . . . . . . . . . . . . . . . . . . . . . Drone Launches . | . . . . . . . . . . . . . . . . . . . . . . . . . . Drone Recoveries . | . . . . . . . . . . . . . . . . . . . . . . . . . . Exploration | -11 -10 -10 -9 -9 -9 -8 -8 -7 -7 -7 -7 -7 -7 -6 -6 -6 -6 -5 -5 -4 -4 -3 -3 -3 -3 ------------- Run | Jun Mat Min Mat Min Exi Min Mat Fac Was Fac Gar Fac Gar Fac Was Fac Gar Fac Gar Fac Gar Res Gar Res Qua Turns Passed 14705 | . 1475 832 1605 293 147 240 869 1020 112 1118 574 133 519 481 187 755 675 353 793 615 700 138 625 221 225 Spaces Moved 21037 | 1 1026 599 1912 603 236 583 961 1532 266 1704 744 336 731 801 194 1668 856 807 832 1485 1023 234 736 509 658 Core 527 | . 230 212 . . . . . . . . . . . . . . 1 . 84 . . . . . . Treads . | . . . . . . . . . . . . . . . . . . . . . . . . . . Legs 76 | 1 75 . . . . . . . . . . . . . . . . . . . . . . . . Wheels . | . . . . . . . . . . . . . . . . . . . . . . . . . . Hover 241 | . . 217 24 . . . . . . . . . . . . . . . . . . . . . . Flight 20193 | . 721 170 1888 603 236 583 961 1532 266 1704 744 336 731 801 194 1668 855 807 748 1485 1023 234 736 509 658 Fastest Speed 6 | 120 40 80 25 25 25 25 20 20 20 20 20 22 22 22 22 19 19 19 19 6 12 12 12 12 10 Average Speed 28 | 120 100 98 28 25 25 25 21 30 20 25 20 22 22 22 22 19 19 19 44 21 15 13 12 12 11 Slowest Speed 300 | 120 120 120 120 25 25 25 25 90 20 95 22 26 22 22 22 22 250 19 300 87 77 84 12 15 14 Overloaded Moves 3 | . . . . . . . . . . . . . . . . . . . . 3 . . . . . Propulsion Burnouts . | . . . . . . . . . . . . . . . . . . . . . . . . . . Robots Hopped 83 | . . . 8 2 . . 2 2 . 10 . 1 . 4 . 16 1 7 . 14 . 1 8 . 7 Cave-ins Triggered . | . . . . . . . . . . . . . . . . . . . . . . . . . . Teleports 2 | . . . . . . . . . . . . . . . . . . . . . . . . . 2 Exploration Rate (%) 66 | 2 99 98 99 99 61 95 92 38 88 58 96 11 94 27 89 62 85 24 87 44 93 12 93 20 72 Regions Visited 25 Branch Regions 5 Pre-discovered Areas 22 | . 1 1 2 2 . . . 3 . 4 . 1 . 1 . 3 . 1 . 3 . . . . . Known Exits Taken 11 | . 1 . 1 . . 1 1 . . 1 . 1 . . . 1 . 1 . 1 . 1 . 1 . Unknown Exits Taken 4 | 1 . 1 . 1 1 . . . . . . . . . . . . . . . . . . . . Scrap Searched 5 | . . 2 . 2 . 1 . . . . . . . . . . . . . . . . . . . Spaces Dug 56 | . 5 . . . . . . 3 . . . . . 7 . 12 . 3 . 2 . . 23 . 1 Terrain Destroyed 1429 | . 190 . 321 41 . 7 96 69 1 29 . . 140 82 . 12 . 79 . 60 91 1 173 1 36 Melee . | . . . . . . . . . . . . . . . . . . . . . . . . . . Projectile 55 | . . . . . . . . 3 1 1 . . . 8 . 5 . 4 . 4 . . 25 . 4 AOE 1370 | . 190 . 321 41 . 7 96 66 . 28 . . 140 74 . 7 . 75 . 56 91 . 146 . 32 Terrain Rammed . | . . . . . . . . . . . . . . . . . . . . . . . . . . Walls Destroyed . | . . . . . . . . . . . . . . . . . . . . . . . . . . Machines Disabled . | . . . . . . . . . . . . . . . . . . . . . . . . . . Actions | -11 -10 -10 -9 -9 -9 -8 -8 -7 -7 -7 -7 -7 -7 -6 -6 -6 -6 -5 -5 -4 -4 -3 -3 -3 -3 --------- Run | Jun Mat Min Mat Min Exi Min Mat Fac Was Fac Gar Fac Gar Fac Was Fac Gar Fac Gar Fac Gar Res Gar Res Qua Total 27406 | . 1294 711 2586 704 323 637 1381 1941 302 2267 1079 381 989 1027 316 1970 1262 937 1164 1747 1509 319 1149 641 770 Wait 2754 | . 90 32 331 58 78 21 115 153 4 334 93 25 118 104 84 111 134 43 104 133 216 58 224 72 19 Move 20862 | . 1025 598 1896 598 235 582 956 1528 265 1684 743 333 730 794 193 1639 853 792 831 1459 1021 231 722 508 646 Hop 68 | . . . 7 2 . . 2 2 . 9 . 1 . 3 . 12 1 7 . 11 . 1 5 . 5 Pick Up 70 | . . . 2 . . . 10 9 3 6 4 . 1 3 . 2 2 . 2 7 7 . 2 1 9 Fast Attach 176 | . 17 2 27 2 4 . 19 19 4 9 1 2 . 3 1 4 . 2 4 14 11 4 8 6 13 Attach 29 | . . . . . . . 3 5 . 1 1 . 1 1 . . . . . 2 4 . 1 1 9 Detach 37 | . . . . . 1 . 3 6 1 2 . . 1 1 . . . . 2 3 6 . 5 3 3 Swap 77 | . . 2 5 . 1 . 9 2 . 1 4 . . 4 . 9 . 4 4 6 8 1 14 1 2 Drop 193 | . 10 2 23 2 4 . 27 22 4 12 6 1 . 4 1 5 1 . 3 21 14 5 8 4 14 Fire 2060 | . 123 65 217 26 . 24 193 146 21 128 93 13 110 74 23 108 114 61 100 54 150 14 131 36 36 Melee . | . . . . . . . . . . . . . . . . . . . . . . . . . . Ram 1 | . . 1 . . . . . . . . . . . . . . . . . . . . . . . Kick . | . . . . . . . . . . . . . . . . . . . . . . . . . . Crush . | . . . . . . . . . . . . . . . . . . . . . . . . . . Escape Stasis 262 | . . . . . . . . . . 18 72 . . . . 22 91 . 45 . 1 . 6 . 7 Rewire 44 | . . . . . . . . . . . 16 . . . . . 13 . 12 . 2 . . 1 . Trap 4 | . . . . 4 . . . . . . . . . . . . . . . . . . . . . Miscellaneous 769 | . 29 9 78 12 . 10 44 49 . 63 46 6 28 36 14 58 53 28 57 37 69 5 23 8 7 Route ------- -11/Junkyard -10/Materials (discovered 4 exits: *Mat x3 / *Min) -10/Mines (discovered 2 exits: *Mat x2) -9/Materials (discovered 5 exits: *Mat x3 / *Min / *Sto) -9/Mines (discovered 3 exits: *Mat x2 / *Exi) -9/Exiles -8/Mines (discovered 2 exits: *Mat x2) -8/Materials (discovered 3 exits: *Fac x3) -7/Factory (discovered 3 exits: *Fac / *Low x2) -7/Waste -7/Factory (discovered 7 exits: *Fac x4 / Low x2 / Gar) -7/Garrison (discovered 3 exits: *Fac x3) -7/Factory (discovered 2 exits: *Fac / Gar) -7/Garrison (discovered 3 exits: *Fac x3) -6/Factory (discovered 3 exits: *Low x2 / Gar) -6/Waste -6/Factory (discovered 8 exits: *Fac x4 / *Low x2 / Gar / Gar) -6/Garrison (discovered 3 exits: *Fac x3) -5/Factory (discovered 9 exits: *Fac x4 / Upp x2 / Ext x2 / Gar) -5/Garrison (discovered 3 exits: *Fac x3) -4/Factory (discovered 8 exits: *Res x4 / *Upp x2 / Gar / Gar) -4/Garrison (discovered 3 exits: *Res x3) -3/Research -3/Garrison (discovered 3 exits: *Res x3) -3/Research -3/Quarantine History --------- Turn | Location | Event 1 | -11/Junkyard | Discovered new exit (range 0) 1 | -11/Junkyard | Entered Materials 115 | -10/Materials | Discovered new exit (range 12) 185 | -10/Materials | Discovered new exit (range 9) 193 | -10/Materials | Reached level 2 207 | -10/Materials | Upgraded with Propulsion slot (x1) 207 | -10/Materials | Upgraded with Utility slot (x4) 305 | -10/Materials | Build established: Mutant 350 | -10/Materials | Core integrity fell below 50% 410 | -10/Materials | Destroyed 8 combat bots 445 | -10/Materials | Reached level 3 466 | -10/Materials | Upgraded with Propulsion slot (x1) 466 | -10/Materials | Upgraded with Weapon slot (x1) 662 | -10/Materials | Discovered new exit (range 7) 680 | -10/Materials | Build established: Scavenger-Mutant 777 | -10/Materials | Identified exit to Mines 966 | -10/Materials | Reached level 4 967 | -10/Materials | Upgraded with Propulsion slot (x1) 1034 | -10/Materials | Discovered new exit (range 4) 1476 | -10/Materials | Entered Mines 1479 | -10/Mines | Received a Mining Laser from a helpful Derelict 1554 | -10/Mines | Learned location of Mines (-8) 1587 | -10/Mines | Discovered new exit (range 15) 1601 | -10/Mines | Reached level 5 1711 | -10/Mines | Assembled infested the area 1716 | -10/Mines | Assisted by a Guerilla fighting off Assembled 1797 | -10/Mines | Core integrity fell below 20% 1837 | -10/Mines | Destroyed 9 combat bots 2138 | -10/Mines | Received a Rocket Launcher from a helpful Derelict 2147 | -10/Mines | Discovered new exit (range 11) 2308 | -10/Mines | Entered Materials 2309 | -9/Materials | Core integrity fell below 50% 2310 | -9/Materials | Reached level 6 2338 | -9/Materials | Core integrity fell below 20% 2385 | -9/Materials | Reached level 7 2422 | -9/Materials | Destroyed 7 combat bots 2576 | -9/Materials | Discovered new exit (range 6) 2644 | -9/Materials | Reached level 8 2708 | -9/Materials | First assault squad dispatched 2827 | -9/Materials | Destroyed 7 combat bots 2848 | -9/Materials | Discovered new exit (range 17) 2907 | -9/Materials | Reached level 9 2931 | -9/Materials | Upgraded with Propulsion slot (x2) 2960 | -9/Materials | Discovered new exit (range 7) 2989 | -9/Materials | Upgraded with Weapon slot (x1) 3004 | -9/Materials | Identified exit to Mines 3004 | -9/Materials | Identified exit to Storage 3229 | -9/Materials | Identified exit to Materials 3279 | -9/Materials | Reached level 10 3312 | -9/Materials | Upgraded with Utility slot (x1) 3336 | -9/Materials | Build established: Wizard-Sprinter 3493 | -9/Materials | Sterilization system engaged 3493 | -9/Materials | Non-combat units ordered to evacuate 3593 | -9/Materials | Combat units ordered to evacuate 3793 | -9/Materials | Ambient heat levels rising (+10) 3913 | -9/Materials | Entered Mines 3915 | -9/Mines | Reached level 11 3959 | -9/Mines | Discovered exit to Materials (range 13) 3976 | -9/Mines | Destroyed YI-UF0 3987 | -9/Mines | Assisted by bots powering up and referring to "LRC-V3" 3994 | -9/Mines | Found a hidden stash of uninstalled traps 4014 | -9/Mines | Discovered exit to Materials (range 11) 4044 | -9/Mines | Learned location of Storage (-9) 4070 | -9/Mines | Joined a pair of Derelicts in attacking an 0b10 outpost 4138 | -9/Mines | Found a damaged Exp. Sensor Array with a note attached 4139 | -9/Mines | Found Prototype Device 4139 | -9/Mines | Identified Exp. Sensor Array 4186 | -9/Mines | Deemed a non-threat by the Exiles lab entrance 4186 | -9/Mines | Discovered new exit (range 5) 4206 | -9/Mines | Entered Exiles 4206 | -9/Exiles | Accompanied by 3 allies 4215 | -9/Exiles | Met 8R-AWN 4219 | -9/Exiles | Met EX-HEX 4228 | -9/Exiles | Met EX-BIN 4231 | -9/Exiles | Aligned with FarCom system 4231 | -9/Exiles | Given EX-Vault access code 4239 | -9/Exiles | Opened EX-Vault 4241 | -9/Exiles | Found Field Lobotomy Kit 4249 | -9/Exiles | Warned to stay clear of 0b10 Research branches 4273 | -9/Exiles | Met EX-DEC 4282 | -9/Exiles | Discovered new exit (range 12) 4353 | -9/Exiles | Left Exiles lab with Field Lobotomy Kit 4353 | -9/Exiles | Entered Mines 4353 | -8/Mines | Accompanied by 3 allies 4396 | -8/Mines | Discovered exit to Materials (range 12) 4438 | -8/Mines | Build established: Hacker-Sprinter 4506 | -8/Mines | Reached level 12 4512 | -8/Mines | Upgraded with Utility slot (x1) 4534 | -8/Mines | Discovered exit to Materials (range 10) 4593 | -8/Mines | Entered Materials 4617 | -8/Materials | Central database locked down 4655 | -8/Materials | Reached level 13 4767 | -8/Materials | Upgraded with Power slot (x1) 4775 | -8/Materials | Destroyed 17 combat bots 4898 | -8/Materials | Build established: Wizard-Sprinter 4905 | -8/Materials | Discovered new exit (range 10) 4993 | -8/Materials | First assault squad dispatched 5064 | -8/Materials | Reached level 14 5067 | -8/Materials | Upgraded with Utility slot (x1) 5203 | -8/Materials | Destroyed 13 combat bots 5254 | -8/Materials | Sterilization system engaged 5254 | -8/Materials | Non-combat units ordered to evacuate 5256 | -8/Materials | Core integrity fell below 50% 5300 | -8/Materials | Hacking Suite fried by hacking feedback 5339 | -8/Materials | Discovered new exit (range 10) 5350 | -8/Materials | Identified exit to Factory 5354 | -8/Materials | Combat units ordered to evacuate 5462 | -8/Materials | Entered Factory 5463 | -7/Factory | Core integrity fell below 50% 5464 | -7/Factory | Reached level 15 5486 | -7/Factory | Upgraded with Weapon slot (x1) 5523 | -7/Factory | Fabricated Enh. Autogun (x1) 5602 | -7/Factory | Found Prototype Launcher 5602 | -7/Factory | Identified Rocket Array 5737 | -7/Factory | Reached level 16 5741 | -7/Factory | Garrison activated, responded to threat 5853 | -7/Factory | Discovered new exit (range 4) 5854 | -7/Factory | Identified exit to Lower Caves 6185 | -7/Factory | Discovered new exit (range 16) 6382 | -7/Factory | Reached level 17 6386 | -7/Factory | Upgraded with Utility slot (x1) 6482 | -7/Factory | Manually triggered Chute Trap 6482 | -7/Factory | Sucked down chute 6482 | -7/Factory | Entered Waste 6489 | -7/Waste | Spotted C-40 Crusher 6489 | -7/Waste | Spotted C-40 Crusher 6490 | -7/Waste | Spotted C-40 Crusher 6494 | -7/Waste | Spotted C-40 Crusher 6496 | -7/Waste | Spotted C-40 Crusher 6497 | -7/Waste | EMP discharged 6498 | -7/Waste | Discovered new exit (range 17) 6501 | -7/Waste | System corruption reached 10% 6554 | -7/Waste | Destroyed C-40 Crusher 6554 | -7/Waste | Destroyed C-40 Crusher 6582 | -7/Waste | Spotted C-40 Crusher 6594 | -7/Waste | Entered Factory 6693 | -7/Factory | Found Rocket Array 6727 | -7/Factory | Discovered new exit (range 7) 6749 | -7/Factory | Destroyed 7 combat bots 7192 | -7/Factory | Garrison activated, responded to threat 7263 | -7/Factory | Destroyed 11 combat bots 7272 | -7/Factory | Central database locked down 7305 | -7/Factory | Reached level 18 7307 | -7/Factory | Discovered new exit (range 16) 7337 | -7/Factory | Destroyed 7 combat bots 7349 | -7/Factory | Fabricated Imp. Cesium-ion Thruster (x1) 7394 | -7/Factory | First assault squad dispatched 7499 | -7/Factory | Fabricated Enh. Autogun (x1) 7517 | -7/Factory | Garrison activated, responded to threat 7517 | -7/Factory | Discovered new exit (range 17) 7550 | -7/Factory | Identified exit to Factory 7564 | -7/Factory | Destroyed 9 combat bots 7652 | -7/Factory | Garrison activated, responded to threat 7680 | -7/Factory | Identified exit to Garrison 7688 | -7/Factory | High security lockdown imminent 7707 | -7/Factory | Identified exit to Garrison 7712 | -7/Factory | Entered Garrison 7721 | -7/Garrison | Triggered checkpoint 7756 | -7/Garrison | Learned Factory security intel 7756 | -7/Garrison | Phase Generator disabled 7765 | -7/Garrison | Triggered checkpoint 7767 | -7/Garrison | Garrison Relay disabled 7847 | -7/Garrison | Installed Relay Interface Framework 7853 | -7/Garrison | Expanded RIF knowledge: Coupler Efficiency 7880 | -7/Garrison | Triggered checkpoint 7888 | -7/Garrison | Garrison Relay disabled 7901 | -7/Garrison | Reached level 19 7909 | -7/Garrison | Upgraded with Utility slot (x1) 7938 | -7/Garrison | Triggered checkpoint 7961 | -7/Garrison | Destroyed 11 combat bots 7962 | -7/Garrison | Triggered checkpoint 7982 | -7/Garrison | Triggered checkpoint 8025 | -7/Garrison | Garrison Relay disabled 8030 | -7/Garrison | Discovered new exit (range 8) 8100 | -7/Garrison | Triggered checkpoint 8109 | -7/Garrison | Triggered checkpoint 8121 | -7/Garrison | Garrison Relay disabled 8155 | -7/Garrison | Discovered new exit (range 15) 8190 | -7/Garrison | Discovered new exit (range 13) 8211 | -7/Garrison | Triggered checkpoint 8227 | -7/Garrison | Rescued a captive Derelict 8228 | -7/Garrison | Rescued a captive Derelict 8238 | -7/Garrison | Garrison Relay disabled 8286 | -7/Garrison | Entered Factory 8286 | -7/Factory | Accompanied by 5 allies 8364 | -7/Factory | Identified exit to Garrison 8382 | -7/Factory | High security lockdown imminent 8388 | -7/Factory | Discovered exit to Factory (range 17) 8419 | -7/Factory | Entered Garrison 8419 | -7/Garrison | Accompanied by 7 allies 8431 | -7/Garrison | Triggered checkpoint 8442 | -7/Garrison | Garrison Relay disabled 8453 | -7/Garrison | Triggered checkpoint 8522 | -7/Garrison | Triggered checkpoint 8534 | -7/Garrison | Triggered checkpoint 8541 | -7/Garrison | Triggered checkpoint 8608 | -7/Garrison | Destroyed 8 combat bots 8614 | -7/Garrison | Triggered checkpoint 8652 | -7/Garrison | Garrison Relay disabled 8661 | -7/Garrison | Discovered exit to Factory (range 8) 8692 | -7/Garrison | Triggered checkpoint 8699 | -7/Garrison | Expanded RIF knowledge: Command Fork 8705 | -7/Garrison | Garrison Relay disabled 8718 | -7/Garrison | Rescued a captive Derelict 8719 | -7/Garrison | Rescued a captive Derelict 8823 | -7/Garrison | Phase Generator disabled 8824 | -7/Garrison | Discovered exit to Factory (range 12) 8866 | -7/Garrison | Triggered checkpoint 8884 | -7/Garrison | Garrison Relay disabled 8884 | -7/Garrison | Reached level 20 8890 | -7/Garrison | Learned Factory security intel 8890 | -7/Garrison | Discovered exit to Factory (range 11) 8897 | -7/Garrison | Destroyed 10 combat bots 8922 | -7/Garrison | Discovered exit to Factory (range 23) 8922 | -7/Garrison | Discovered exit to Factory (range 46) 8922 | -7/Garrison | Discovered exit to Factory (range 77) 8938 | -7/Garrison | Entered Factory 8941 | -6/Factory | Identified exit to DSF 8943 | -6/Factory | Identified exit to Garrison 9131 | -6/Factory | Fabricated Adv. Force Field (x2) 9139 | -6/Factory | Discovered new exit (range 8) 9207 | -6/Factory | Identified exit to Lower Caves 9259 | -6/Factory | Hacking Suite fried by hacking feedback 9288 | -6/Factory | First assault squad dispatched 9348 | -6/Factory | Reached level 21 9373 | -6/Factory | High security lockdown imminent 9409 | -6/Factory | Local machine network offline 9414 | -6/Factory | Destroyed 12 combat bots 9419 | -6/Factory | Sucked down chute 9419 | -6/Factory | Entered Waste 9427 | -6/Waste | Spotted C-40 Crusher 9442 | -6/Waste | Destroyed C-40 Crusher 9450 | -6/Waste | Spotted C-40 Crusher 9450 | -6/Waste | Spotted C-40 Crusher 9475 | -6/Waste | Destroyed C-40 Crusher 9488 | -6/Waste | Spotted C-40 Crusher 9495 | -6/Waste | Warlord forces began an assault 9513 | -6/Waste | Spotted C-40 Crusher 9520 | -6/Waste | Allies destroyed C-40 Crusher 9526 | -6/Waste | Allies destroyed C-40 Crusher 9530 | -6/Waste | Spotted C-40 Crusher 9532 | -6/Waste | Allies destroyed C-40 Crusher 9534 | -6/Waste | Destroyed C-40 Crusher 9552 | -6/Waste | Discovered new exit (range 16) 9606 | -6/Waste | Entered Factory 9606 | -6/Factory | Accompanied by 17 allies 9712 | -6/Factory | Garrison activated, responded to threat 9828 | -6/Factory | Discovered new exit (range 21) 9854 | -6/Factory | Reached level 22 9856 | -6/Factory | Upgraded with Propulsion slot (x1) 9860 | -6/Factory | Garrison activated, responded to threat 9892 | -6/Factory | Identified exit to Garrison 9946 | -6/Factory | Discovered exit to Lower Caves (range 16) 9956 | -6/Factory | First assault squad dispatched 9971 | -6/Factory | Found Launcher Loader 9996 | -6/Factory | Identified exit to Factory 10021 | -6/Factory | Spotted B-75 Beast 10086 | -6/Factory | Local machine network offline 10129 | -6/Factory | Discovered exit to Lower Caves (range 15) 10158 | -6/Factory | Identified exit to Garrison 10172 | -6/Factory | Destroyed 9 combat bots 10294 | -6/Factory | Garrison activated, responded to threat 10361 | -6/Factory | Entered Garrison 10363 | -6/Garrison | Destroyed 10 combat bots 10437 | -6/Garrison | Triggered checkpoint 10437 | -6/Garrison | Triggered checkpoint 10441 | -6/Garrison | Destroyed 9 combat bots 10451 | -6/Garrison | Garrison Relay disabled 10456 | -6/Garrison | Triggered checkpoint 10474 | -6/Garrison | Triggered checkpoint 10484 | -6/Garrison | Triggered checkpoint 10552 | -6/Garrison | Learned Factory security intel 10646 | -6/Garrison | Destroyed 8 combat bots 10695 | -6/Garrison | Expanded RIF knowledge: Watcher Feeds 10730 | -6/Garrison | Triggered checkpoint 10734 | -6/Garrison | Rescued a captive Derelict 10737 | -6/Garrison | Garrison Relay disabled 10842 | -6/Garrison | Triggered checkpoint 10853 | -6/Garrison | Garrison Relay disabled 10936 | -6/Garrison | Triggered checkpoint 10947 | -6/Garrison | Garrison Relay disabled 10991 | -6/Garrison | Expanded RIF knowledge: Hotswap 11036 | -6/Garrison | Entered Factory 11036 | -5/Factory | Accompanied by 7 allies 11038 | -5/Factory | Reached level 23 11058 | -5/Factory | Central database locked down 11085 | -5/Factory | Identified exit to Factory 11125 | -5/Factory | Identified exit to Upper Caves 11125 | -5/Factory | Identified exit to Extension 11146 | -5/Factory | High security lockdown imminent 11172 | -5/Factory | Identified exit to Garrison 11177 | -5/Factory | Local machine network offline 11226 | -5/Factory | High security lockdown engaged 11276 | -5/Factory | Reached level 24 11311 | -5/Factory | Garrison activated, responded to threat 11363 | -5/Factory | Core integrity fell below 50% 11389 | -5/Factory | Entered Garrison 11395 | -5/Garrison | Expanded RIF knowledge: Threat Obfuscation 11405 | -5/Garrison | Destroyed 10 combat bots 11407 | -5/Garrison | Garrison Relay disabled 11496 | -5/Garrison | Rescued a captive Derelict 11511 | -5/Garrison | Discovered exit to Factory (range 9) 11513 | -5/Garrison | Triggered checkpoint 11541 | -5/Garrison | Garrison Relay disabled 11546 | -5/Garrison | Triggered checkpoint 11581 | -5/Garrison | Triggered checkpoint 11611 | -5/Garrison | Destroyed 13 combat bots 11655 | -5/Garrison | Triggered checkpoint 11668 | -5/Garrison | Discovered exit to Factory (range 9) 11677 | -5/Garrison | Garrison Relay disabled 11747 | -5/Garrison | Central database locked down 11801 | -5/Garrison | Discovered exit to Factory (range 69) 11801 | -5/Garrison | Discovered exit to Factory (range 86) 11801 | -5/Garrison | Discovered exit to Factory (range 26) 11936 | -5/Garrison | Triggered checkpoint 11995 | -5/Garrison | Garrison Relay disabled 12095 | -5/Garrison | Garrison Relay disabled 12097 | -5/Garrison | Garrison Relay disabled 12099 | -5/Garrison | Garrison Relay disabled 12099 | -5/Garrison | Garrison Relay disabled 12182 | -5/Garrison | Entered Factory 12184 | -4/Factory | Reached level 25 12278 | -4/Factory | Upgraded with Propulsion slot (x1) 12303 | -4/Factory | Identified exit to Upper Caves 12321 | -4/Factory | Identified exit to Garrison 12461 | -4/Factory | First assault squad dispatched 12489 | -4/Factory | Discovered new exit (range 7) 12531 | -4/Factory | Identified exit to Research 12713 | -4/Factory | Core integrity fell below 50% 12744 | -4/Factory | Reached level 26 12787 | -4/Factory | Spotted B-86 Titan 12790 | -4/Factory | Destroyed 17 combat bots 12792 | -4/Factory | Identified exit to Garrison 12797 | -4/Factory | Entered Garrison 12804 | -4/Garrison | Triggered checkpoint 12877 | -4/Garrison | Garrison Relay disabled 12895 | -4/Garrison | Triggered checkpoint 12918 | -4/Garrison | Garrison Relay disabled 12925 | -4/Garrison | Expanded RIF knowledge: Zone Cloak 12930 | -4/Garrison | Triggered checkpoint 13004 | -4/Garrison | Triggered checkpoint 13009 | -4/Garrison | Triggered checkpoint 13034 | -4/Garrison | Garrison Relay disabled 13099 | -4/Garrison | Discovered exit to Research (range 15) 13102 | -4/Garrison | Triggered checkpoint 13131 | -4/Garrison | Destroyed 10 combat bots 13173 | -4/Garrison | Phase Generator disabled 13186 | -4/Garrison | Triggered checkpoint 13225 | -4/Garrison | Discovered exit to Research (range 11) 13227 | -4/Garrison | Reached level 27 13249 | -4/Garrison | Upgraded with Propulsion slot (x1) 13277 | -4/Garrison | Destroyed 10 combat bots 13283 | -4/Garrison | Triggered checkpoint 13287 | -4/Garrison | Discovered exit to Research (range 46) 13287 | -4/Garrison | Discovered exit to Research (range 70) 13287 | -4/Garrison | Discovered exit to Research (range 26) 13287 | -4/Garrison | Garrison Relay disabled 13334 | -4/Garrison | Triggered checkpoint 13337 | -4/Garrison | Expanded RIF knowledge: Patrol Navigation 13349 | -4/Garrison | Build established: Commander-Sprinter 13358 | -4/Garrison | Garrison Relay disabled 13497 | -4/Garrison | Entered Research 13497 | -3/Research | Accompanied by 23 allies 13498 | -3/Research | Spotted B-86 Titan 13508 | -3/Research | Reached level 28 13508 | -3/Research | Allies destroyed B-86 Titan 13529 | -3/Research | Garrison activated, responded to threat 13555 | -3/Research | High security lockdown imminent 13571 | -3/Research | Identified exit to Garrison 13635 | -3/Research | High security lockdown engaged 13635 | -3/Research | Garrison activated, responded to threat 13635 | -3/Research | Entered Garrison 13635 | -3/Garrison | Accompanied by 21 allies 13639 | -3/Garrison | Triggered checkpoint 13649 | -3/Garrison | Garrison Relay disabled 13660 | -3/Garrison | Expanded RIF knowledge: Code Merge 13675 | -3/Garrison | Triggered checkpoint 13678 | -3/Garrison | Spotted B-86 Titan 13680 | -3/Garrison | Triggered checkpoint 13680 | -3/Garrison | Assimilated Titan 8a with formatsys_high 13693 | -3/Garrison | Reached level 29 13712 | -3/Garrison | Phase Generator disabled 13728 | -3/Garrison | Triggered checkpoint 13748 | -3/Garrison | Upgraded with Utility slot (x1) 13763 | -3/Garrison | Triggered checkpoint 13775 | -3/Garrison | Local machine network offline 13779 | -3/Garrison | Garrison Relay disabled 13798 | -3/Garrison | Garrison Relay disabled 13814 | -3/Garrison | Garrison Relay disabled 13821 | -3/Garrison | Garrison Relay disabled 13822 | -3/Garrison | Destroyed 8 combat bots 13830 | -3/Garrison | Discovered new exit (range 7) 13856 | -3/Garrison | Rescued a captive Derelict 13863 | -3/Garrison | Rescued a captive Derelict 13884 | -3/Garrison | Triggered checkpoint 13902 | -3/Garrison | Discovered new exit (range 9) 13924 | -3/Garrison | Triggered checkpoint 13931 | -3/Garrison | Garrison Relay disabled 13974 | -3/Garrison | Garrison Relay disabled 13990 | -3/Garrison | Triggered checkpoint 13999 | -3/Garrison | Discovered new exit (range 11) 14008 | -3/Garrison | P-80 Master assimilated allied Veteran 8m 14260 | -3/Garrison | Entered Research 14260 | -3/Research | Accompanied by 35 allies 14297 | -3/Research | Reached level 30 14297 | -3/Research | High security lockdown imminent 14377 | -3/Research | High security lockdown engaged 14398 | -3/Research | Local machine network offline 14401 | -3/Research | Discovered new exit (range 5) 14417 | -3/Research | Identified exit to Quarantine 14481 | -3/Research | Entered Quarantine 14481 | -3/Quarantine | Accompanied by 21 allies 14482 | -3/Quarantine | Maximum security lockdown engaged 14499 | -3/Quarantine | Local machine network offline 14506 | -3/Quarantine | Found Core Reset Matrix 14506 | -3/Quarantine | Used Core Reset Matrix 14510 | -3/Quarantine | Detected hypermatrix surge 14510 | -3/Quarantine | Sensed 11 artifacts in vicinity 14515 | -3/Quarantine | Met incapacitated Sigix Warrior 14515 | -3/Quarantine | Lockdown squad dispatched 14545 | -3/Quarantine | Found Hpw. Transdimensional Reconstructor 14550 | -3/Quarantine | Found Hpw. Transdimensional Reconstructor 14573 | -3/Quarantine | Spotted Fortress 14625 | -3/Quarantine | Found Core Cannon 14629 | -3/Quarantine | Core integrity fell below 50% 14629 | -3/Quarantine | Cryocooling Duct disabled 14641 | -3/Quarantine | Spotted Lightning 14644 | -3/Quarantine | Ambient heat levels rising (+20) 14645 | -3/Quarantine | Spotted Lightning 14645 | -3/Quarantine | Spotted Lightning 14654 | -3/Quarantine | Warped through subspace 14658 | -3/Quarantine | Found Subatomic Replicator 14659 | -3/Quarantine | Used Subatomic Replicator to create Supercharged TR 14666 | -3/Quarantine | Found Sigix Corpse 14672 | -3/Quarantine | Found Sigix Corpse 14684 | -3/Quarantine | Found Core Stripper 14686 | -3/Quarantine | Spotted Investigator 14696 | -3/Quarantine | Assimilated L-61 Swordsman with FLK Orb 14700 | -3/Quarantine | Assimilated G-67 Veteran with FLK Orb 14703 | -3/Quarantine | Core integrity fell below 20% 14703 | -3/Quarantine | Warped through subspace 14706 | -3/Quarantine | Destroyed by G-67 Veteran with Plasma Rifle Last Messages --------------- 14702_ Y-72 Warden stasis bubble bursts. 14702_ G-67 Veteran stasis bubble strength at 86. 14702_ I-47 Archangel distress signal jammed. 14702_ I-47 Archangel stasis bubble strength at 50. 14702_ I-47 Archangel distress signal jammed. 14703_ Warped through subspace. 14703_ I-47 Archangel distress signal jammed. 14703_ I-47 Archangel stasis bubble strength at 40. 14703_ Slug penetrates L-61 Swordsman. 14703_ Slug penetrates Wall. 14704_ Stasis bubble strength at 146. 14704_ Swordsman 8a critical meltdown. 14704_ I-47 Archangel distress signal jammed. 14704_ I-47 Archangel stasis bubble strength at 30. 14705_ Stasis bubble strength at 134. 14705_ I-47 Archangel distress signal jammed. 14705_ I-47 Archangel stasis bubble strength at 20. 14705_ G-73 Enforcer stasis bubble strength at 177. 14705_ Critical hit (Burn: +17). 14706_ Stasis bubble strength at 122. Map ----- +----------------------------------------------------+ | ?????????? ?????????????????????????+ + | | ?????????? ?????????????????????????######### | | ?????????? ?????????????????????????????????# | | ?????????? ?????????????????????????????????# | | ?????????# #????????????????????????????????# | | ?????????# #????????????????????????????????# | | ?????????# ^ #????????????????????????????????# | | ?????????" #????????????????????????????????## | | ????????? #?????????????????????????????????? | | ?????????# #?????????????????????????######### | | ?????????# #######???????????????????# = | | ??????? ?# # ????????############ | | ??????? #! p# "????????# """T""" ##""" | | ???????? # # ! "????????# """ " " #""" | | ?????????+ #= """#?????# d """ | | ?????????# !%# """#?????#x"""d """ | | ?????????#= [+ ! """#?????# """ g """ | | ?????????# =%# """#?????#l""" # | | ?????????# !# """#?????# | | ?????????# # #?????# g ### | | ?????????# # # ########## # # # # # | | ?????????# # ## # ## Y m! p b | | ?????????# mgY b%! l g b # | | ?????????# b c l!= l x g | | ?????????# glYggl= # | | ?????????# % @l g% | | ????????## = giYg* % | | ??####### g %!%%* ! % | | ??#""" # %= [ % % | | ??#""" + % [ | | ??#"" # | | ??#""" # | # ## ## ##### | | ??#""" ## ######## #?## | | ??######## #??????## p #??# | | ?????????# #???????# #??# | | ?????????# #???????# #??# | | ?????????# #???????# +??? | | ?????????# #???????# #????? | | ?????????# ##??????########???????###### | | ?????????# T#??????????????????????????# ## | | ??????####"" ####????????????????????????# ?? | | ??????#""T T""#?????????????????????????? ?? | | ??????#"" ""#???????????????????????????? ?? | | ??????#""" """#??????????????????????????????? | | ??????#"" """ ""#??????????????????????????????? | | ??????#"" "&" ""#??????????????????????????????? | | ??????#"" """ ""#??????????????????????????????? | | ??????#""" """#??????????????????????????????? | | ??????#"""""""""#??????????????????????????????? | | ??????#"""""""""#??????????????????????????????? | +----------------------------------------------------+ Best States ------------- Heat Dissipation 97 Coolant Potential 120 Energy Generation 48 Energy Capacity 480 Matter Stores 300 Matter Capacity 300 Sight Range 19 Robot Scan Range 20 Terrain Scan Density 10 Jamming Range 16 Additional Mass Support 9 Armor Coverage 150 Resistance: TH 30 Weapon Cycling 30 Phase Shifting 10 Evasion (%) 89 Targeting Accuracy 24 Target Analysis 8 Core Analysis 6 Armor Integrity Analysis 40 Offensive Hacking 60 Defensive Hacking 64 Relay Coupler Types 11 Relay Coupler Value 816 Item Schematics ----------------- Gravity Neutralizer | -3/Quarantine | Archive Exp. Optical Array | -3/Quarantine | Archive Robot Schematics ------------------ None Fabricated ------------ Enh. Autogun | x1 | -7/Factory Imp. Cesium-ion Thruster | x1 | -7/Factory Enh. Autogun | x1 | -7/Factory Adv. Force Field | x2 | -6/Factory | Preloaded Alien Tech Used ----------------- Core Reset Matrix Core Cannon High-powered Transdimensional Reconstructor Subatomic Replicator Core Stripper Supercharged TR Achievements -------------- None Challenges ------------ None RPGLIKE | -11 -10 -10 -9 -9 -9 -8 -8 -7 -7 -7 -7 -7 -7 -6 -6 -6 -6 -5 -5 -4 -4 -3 -3 -3 -3 --------- Run | Jun Mat Min Mat Min Exi Min Mat Fac Was Fac Gar Fac Gar Fac Was Fac Gar Fac Gar Fac Gar Res Gar Res Qua Levels Raised 29 | . 3 1 5 1 . 1 2 3 . 1 1 . 1 1 . 1 . 2 . 2 1 1 1 1 . XP Earned 47913 | 3000 5422 1128 8290 531 80 1397 3718 3684 46 2126 1145 154 825 1657 38 1876 852 1735 908 2065 1741 1719 2210 524 1042 XP Spent 45445 | . 7300 1325 7860 . . 2500 3440 4450 . . 3050 . . 1500 . 2000 500 800 . 3620 2600 . 3700 . 800 Upgrades 60 | . 12 8 12 . . 2 5 3 . . 2 . . 2 . 1 1 1 . 7 1 . 2 . 1 Power Slot 1 | . . . . . . . 1 . . . . . . . . . . . . . . . . . . Propulsion Slot 8 | . 3 . 2 . . . . . . . . . . . . 1 . . . 1 1 . . . . Utility Slot 10 | . 4 . 1 . . 1 1 1 . . 1 . . . . . . . . . . . 1 . . Weapon Slot 3 | . 1 . 1 . . . . 1 . . . . . . . . . . . . . . . . . Core Integrity 5 | . . 3 2 . . . . . . . . . . . . . . . . . . . . . . Heat Dissipation 12 | . . 2 1 . . . 2 . . . 1 . . . . . . . . 6 . . . . . Energy Generation 1 | . . . 1 . . . . . . . . . . . . . . . . . . . . . . Mass Support 1 | . 1 . . . . . . . . . . . . . . . . . . . . . . . . Inventory Capacity 4 | . . . 1 . . 1 . 1 . . . . . 1 . . . . . . . . . . . Sight Range 1 | . 1 . . . . . . . . . . . . . . . . . . . . . . . . Ranged Accuracy 5 | . . 2 2 . . . . . . . . . . . . . . 1 . . . . . . . Hack Attack % 2 | . 1 . . . . . 1 . . . . . . . . . . . . . . . . . . Hack Defense % 2 | . 1 . . . . . . . . . . . . 1 . . . . . . . . . . . KI Damage % 2 | . . . 1 . . . . . . . . . . . . . 1 . . . . . . . . TH Damage % 3 | . . 1 . . . . . . . . . . . . . . . . . . . . 1 . 1 Protomatter Created 8359 | . 330 37 772 75 . 36 754 448 88 596 617 67 308 375 86 530 532 285 639 477 609 231 467 . . Integrity Restored 15933 | . 663 162 1638 222 . 205 993 1023 . 1299 864 109 552 804 315 1128 1097 612 1176 770 1418 91 477 147 168 Core 12975 | . 663 162 1430 214 . 160 993 875 . 877 686 58 492 700 155 863 830 612 775 608 1054 67 438 95 168 Parts 2958 | . . . 208 8 . 45 . 148 . 422 178 51 60 104 160 265 267 . 401 162 364 24 39 52 . Protomatter Decayed 4996 | . 109 44 217 . . 4 336 101 . 196 401 . 164 67 4 544 248 240 178 295 314 199 512 269 554 Game ------ Seed MissilePhysicsFirepult Manual? 0 Play Time 05:01:48 Cumulative 516.7 hours Start 2023.03.28 @ 00:21:25 End 2023.03.28 @ 05:42:54 Sessions 1 Manual Loads 0 Difficulty Rogue Special Mode Winter2019/RPGLIKE Game No. 542 Rogue 542 Adventurer 0 Explorer 0 Win Type - Total 1 Types 1/0/0/0/0/0/0/0/0 Lore% 64 Gallery% 83 Achievement% 65 Wizard Run 0 Options --------- ASCII 0 Keyboard 0 Movement Mouse Keybinds 0 Fullscreen 2 Font 24/Smallcaps Map View 76x50 Tactical HUD 1 Map Filters NONE Filters NONE Steam 1 RUN: f027d075-317f-4329-ba0c-24cee074823a